bitfinex/quotes_ETHUSD_20241120
["timestamp","ask_amount","ask_price","bid_price","bid_amount"]
[1732123263635,0.0111,3064.3,3064.0,1.82944239]
[1732123263860,3.48701,3064.4,3064.0,1.82944239]
[1732123263861,0.55,3064.1,3064.0,1.26760915]
[1732123264026,0.78968934,3064.1,3064.0,1.26760915]
[1732123264232,1.60346978,3064.1,3064.0,1.26760915]
[1732123264424,2.07151474,3064.1,3064.0,0.84417647]
[1732123264865,2.57003206,3064.1,3064.0,0.84417647]
[1732123265067,2.07151474,3064.1,3064.0,0.84417647]
[1732123265369,3.1201034,3064.1,3064.0,0.84417647]
[1732123265728,2.62151474,3064.1,3064.0,0.84417647]
[1732123266064,2.56946257,3064.1,3064.0,0.84417647]
[1732123266267,3.1472654,3064.1,3063.5,0.14957031]
[1732123266572,0.49721601,3063.9,3063.5,0.14957031]
[1732123266773,0.0111,3063.7,3063.5,0.14957031]
[1732123266969,0.78763987,3063.7,3063.5,0.14957031]
[1732123267153,0.84514697,3063.7,3063.5,0.14957031]
[1732123267709,0.84514697,3063.7,3063.6,0.05062634]
[1732123268360,1.39514697,3063.7,3063.6,0.05062634]
[1732123268559,0.91727628,3063.7,3063.6,0.05062634]
[1732123268727,1.39514697,3063.7,3063.6,0.05062634]
[1732123268931,1.10651258,3063.7,3063.6,0.05062634]
[1732123269235,10.54232483,3063.7,3063.6,0.05062634]
[1732123269437,11.03954084,3063.7,3063.6,0.05062634]
[1732123269733,11.26647827,3063.7,3063.6,0.05062634]
[1732123269963,0.0111,3063.2,3063.0,0.74241726]
[1732123270136,0.77653987,3063.1,3063.0,0.74241726]
[1732123270483,1.63259215,3063.1,3063.0,0.74241726]
[1732123270777,0.0111,3062.9,3062.8,0.00184651]
[1732123270980,0.30976918,3062.9,3062.8,0.00184651]
[1732123271129,0.06827773,3062.9,3062.8,0.00184651]
[1732123271497,0.05717773,3062.9,3062.8,0.01184651]
[1732123271710,0.05717773,3062.9,3062.8,0.78444651]
[1732123271913,0.0111,3064.3,3063.1,0.01]
[1732123272114,0.29722811,3064.6,3063.6,0.01]
[1732123272277,0.05586399,3064.2,3063.6,0.01]
[1732123272459,0.0111,3064.9,3064.1,0.7726]
[1732123272659,0.29728517,3064.8,3064.1,0.7726]
[1732123272907,0.29728517,3064.7,3064.1,0.7726]
[1732123273092,0.29728517,3064.8,3064.1,0.7726]
[1732123273295,0.29728517,3064.7,3064.1,0.7726]
[1732123273604,0.0111,3065.2,3064.1,0.7726]
[1732123273774,0.5350574,3065.1,3064.1,0.7726]
[1732123273972,0.29725411,3065.0,3064.1,0.7726]
[1732123274162,0.29725411,3064.9,3064.1,0.7726]
[1732123274363,0.29725411,3064.8,3064.4,0.01]
[1732123274676,0.49570084,3065.4,3062.9,0.14914532]
[1732123274677,0.0111,3066.2,3064.8,0.8016]
[1732123274873,0.0111,3066.2,3063.6,0.01]
[1732123274874,0.89579416,3066.1,3065.4,0.01]
[1732123275082,0.0111,3066.6,3065.5,0.8016]
[1732123276012,0.0111,3067.2,3066.4,0.01]
[1732123276213,0.33854083,3067.5,3066.7,0.01]
[1732123276214,0.97188099,3066.9,3066.7,0.01]
[1732123276501,0.33854083,3067.5,3066.7,0.01]
[1732123276502,0.47602334,3067.5,3066.7,0.01]
[1732123276702,0.29765636,3067.4,3066.7,0.01]
[1732123276914,1.302764,3067.8,3067.0,0.01]
[1732123277220,0.0111,3067.6,3066.2,0.01]
[1732123277384,0.32604,3067.1,3065.7,0.01]
[1732123277557,9.81975068,3067.0,3065.7,0.01]
[1732123277761,9.81975068,3067.0,3063.7,1.69690445]
[1732123277762,0.32608,3066.7,3065.1,0.8291]
[1732123278009,0.23804737,3067.0,3065.1,0.8291]
[1732123278010,0.5611,3066.5,3065.1,0.8291]
[1732123278218,0.5611,3066.5,3064.8,0.01]
[1732123278219,0.32615,3066.1,3064.8,0.01]
[1732123278358,0.29771175,3066.0,3064.8,0.01]
[1732123278558,0.53575912,3065.9,3064.8,0.01]
[1732123278764,0.53575912,3065.8,3065.0,0.01]
[1732123279057,0.53575912,3065.8,3064.7,0.01]
[1732123279058,0.29771175,3065.7,3064.7,0.01]
[1732123279324,0.29771175,3065.7,3064.6,0.8291]
[1732123279463,0.33731,3065.5,3064.1,0.8391]
[1732123279667,0.29771175,3065.4,3064.3,0.01]
[1732123279869,1.22327708,3065.3,3064.3,0.01]
[1732123280165,1.22327708,3065.3,3064.1,0.8391]
[1732123280166,0.29771175,3065.2,3064.1,0.8391]
[1732123280403,0.29771175,3065.1,3064.1,0.8391]
[1732123280709,0.34927271,3065.0,3064.1,0.8391]
[1732123281090,0.29771175,3064.9,3064.1,0.8391]
[1732123281293,0.34923574,3064.9,3063.7,0.01]
[1732123281604,0.34923574,3064.9,3063.6,0.751]
[1732123281605,0.29771175,3064.8,3063.6,0.751]
[1732123281805,0.29771175,3064.8,3063.5,0.01]
[1732123281806,0.29749966,3064.7,3063.5,0.01]
[1732123282011,0.29749966,3064.6,3063.7,0.01]
[1732123282305,0.05137611,3064.5,3063.7,0.01]
[1732123282876,8.96904156,3065.0,3063.7,0.01]
[1732123283074,0.05133914,3064.4,3063.5,0.01]
[1732123283288,0.29743721,3064.3,3063.7,0.01]
[1732123283590,0.29743721,3064.2,3063.7,0.01]
[1732123283787,0.05130216,3064.3,3063.7,0.01]
[1732123283996,1.59482779,3064.8,3064.0,0.01]
[1732123283997,0.05122819,3064.1,3064.0,0.01]
[1732123284492,0.0111,3065.0,3064.0,0.01]
[1732123284693,9.73189596,3065.4,3064.0,0.01]
[1732123285029,0.05152399,3064.9,3064.0,0.01]
[1732123285333,0.34916613,3064.8,3064.2,0.01]
[1732123285524,0.05148703,3064.8,3064.2,0.01]
[1732123285677,0.4762753,3065.4,3064.2,0.01]
[1732123285878,0.05145006,3064.7,3064.2,0.01]
[1732123286120,0.94649997,3065.4,3064.2,0.01]
[1732123286278,0.05141309,3064.6,3064.2,0.01]
[1732123286487,0.94649997,3065.4,3064.2,0.01]
[1732123286488,0.29810595,3065.3,3064.2,0.01]
[1732123286701,0.29817425,3065.2,3064.6,0.01]
[1732123287040,0.29810595,3065.3,3065.0,0.7668]
[1732123287244,0.29810595,3065.3,3065.0,0.7568]
[1732123287396,0.29810595,3065.3,3064.8,0.01]
[1732123288025,0.29810595,3065.3,3065.0,0.01]
[1732123288342,8.96904156,3067.5,3065.7,0.01]
[1732123288529,8.95794156,3067.4,3065.7,0.01]
[1732123288727,0.47792218,3066.3,3065.7,0.01]
[1732123288930,0.47792218,3066.9,3065.9,0.01]
[1732123289131,0.0111,3067.5,3066.3,0.8029]
[1732123289132,0.49783561,3067.1,3066.3,0.8029]
[1732123289315,1.302764,3067.8,3066.7,0.01]
[1732123289316,0.97575779,3067.7,3066.7,0.01]
[1732123289688,0.22785218,3067.6,3066.9,0.01]
[1732123289941,8.95794156,3068.4,3066.9,0.01]
[1732123289942,0.49783561,3068.2,3066.9,0.01]
[1732123290157,0.49783561,3068.2,3067.3,0.01]
[1732123290301,0.49783561,3068.2,3067.4,0.8149]
[1732123290705,0.3091,3068.5,3066.9,0.8149]
[1732123290919,0.3091,3068.5,3065.5,0.01]
[1732123290920,0.49783561,3068.1,3066.3,0.8249]
[1732123291142,0.49783561,3067.9,3066.3,0.8249]
[1732123291347,3.49783561,3067.9,3066.3,0.8249]
[1732123291641,0.49783561,3067.8,3066.3,0.8249]
[1732123291855,0.39757578,3067.7,3066.3,0.8249]
[1732123292951,1.70050678,3067.7,3066.6,0.01]
[1732123293256,0.8691,3067.4,3065.8,0.7526]
[1732123293419,0.55,3067.2,3065.8,0.7626]
[1732123293749,0.97282642,3067.2,3065.8,0.7626]
[1732123293945,0.9930768,3067.1,3066.2,0.01]
[1732123294506,0.17005068,3067.6,3066.0,0.01]
[1732123294507,0.64669635,3067.6,3066.0,0.01]
[1732123294701,0.64669635,3067.6,3066.3,0.01]
[1732123294937,1.13051447,3067.5,3066.3,0.01]
[1732123295654,0.04729173,3067.4,3066.3,0.01]
[1732123295871,0.04729173,3067.4,3065.9,0.01]
[1732123296006,0.04729173,3067.4,3065.8,0.7526]
[1732123296007,0.55,3067.1,3065.5,0.01]
[1732123296209,0.55,3066.9,3065.4,0.01]
[1732123296412,0.55,3066.7,3065.4,0.01]
[1732123296720,0.04699775,3066.6,3065.4,0.01]
[1732123297046,9.00493931,3066.6,3065.4,0.01]
[1732123297249,0.47664567,3066.5,3065.3,0.8244]
[1732123297408,0.9481585,3066.4,3065.3,0.8244]
[1732123297610,0.9950824,3066.4,3065.3,0.8244]
[1732123297936,0.9950824,3066.4,3065.4,0.01]
[1732123298148,0.9950824,3066.4,3065.7,0.01]
[1732123298449,0.0469239,3066.4,3065.7,0.01]
[1732123298650,0.0469239,3066.4,3066.0,0.01]
[1732123298807,0.0469239,3066.4,3065.8,0.01]
[1732123299007,0.9742976,3067.3,3066.0,0.01]
[1732123299235,0.9742976,3067.3,3063.4,2.03237055]
[1732123299236,0.47795759,3067.3,3066.2,0.01]
[1732123299436,0.04719605,3067.2,3066.2,0.01]
[1732123299845,0.04713697,3067.1,3066.2,0.01]
[1732123300210,1.302931,3067.7,3066.2,0.01]
[1732123300211,0.34635938,3067.0,3066.2,0.01]
[1732123300412,0.34635938,3067.0,3066.1,0.8125]
[1732123300413,0.04711386,3067.0,3066.7,0.01]
[1732123300809,1.302931,3067.7,3066.7,0.01]
[1732123301011,0.47924461,3067.6,3066.7,0.01]
[1732123301264,0.34665319,3067.5,3066.7,0.01]
[1732123301412,0.29931751,3067.4,3066.5,0.01]
[1732123301631,0.34657938,3067.3,3066.2,0.01]
[1732123301830,0.34657938,3067.3,3066.1,0.8125]
[1732123301831,0.29931751,3067.2,3066.6,0.01]
[1732123302141,0.34650556,3067.1,3066.2,0.01]
[1732123302341,0.29931751,3067.0,3066.4,0.01]
[1732123302544,0.29931751,3066.9,3066.4,0.01]
[1732123303042,0.04715114,3067.0,3066.4,0.01]
[1732123303249,0.04708367,3066.8,3066.2,0.01]
[1732123303458,0.29990641,3066.7,3066.2,0.01]
[1732123303643,0.29990641,3066.6,3066.2,0.01]
[1732123303838,0.04700983,3066.6,3066.4,0.01]
[1732123304072,0.47996248,3067.1,3066.4,0.01]
[1732123304377,0.49996092,3067.3,3066.4,0.01]
[1732123304378,0.3472223,3067.0,3066.4,0.01]
[1732123304665,0.30006479,3066.9,3066.4,0.01]
[1732123304879,0.34714846,3066.8,3066.4,0.01]
[1732123305026,0.04708367,3066.8,3066.4,0.01]
[1732123305230,0.47996248,3067.3,3066.4,0.01]
[1732123305460,0.82729631,3067.2,3066.6,0.01]
[1732123305669,0.3001025,3067.1,3066.6,0.01]
[1732123305969,0.34726001,3067.0,3066.6,0.01]
[1732123306273,0.3001025,3066.9,3066.8,0.7726]
[1732123306428,0.04715751,3067.0,3066.8,0.7726]
[1732123306629,0.04712059,3066.9,3066.8,0.7726]
[1732123306982,4.01631238,3069.5,3066.8,0.7726]
[1732123306983,0.95992548,3067.8,3066.8,0.7726]
[1732123307159,0.04712026,3066.9,3066.8,0.7726]
[1732123307344,0.78026094,3067.7,3067.4,0.01]
[1732123307531,0.7726,3068.3,3067.6,0.01]
[1732123307968,0.4805062,3068.7,3067.6,0.01]
[1732123308173,0.78075814,3068.6,3067.6,0.01]
[1732123308374,0.78075814,3068.5,3067.6,0.01]
[1732123308685,0.78075814,3068.4,3067.5,0.7674]
[1732123308888,0.78075814,3068.3,3067.5,0.7674]
[1732123309184,0.78075814,3068.2,3067.0,0.7609]
[1732123309331,0.78075814,3068.1,3067.5,0.01]
[1732123309531,0.7674,3068.7,3067.5,0.01]
[1732123309532,0.30025194,3068.0,3067.5,0.01]
[1732123309735,0.30025194,3067.9,3067.4,0.01]
[1732123310041,0.30025194,3067.8,3067.1,0.01]
[1732123310344,0.30025194,3067.7,3067.4,0.01]
[1732123310893,0.34763056,3067.6,3067.2,0.01]
[1732123311172,0.04737862,3067.6,3067.4,0.01]
[1732123311381,0.04737862,3067.6,3067.2,0.01]
[1732123311538,0.30053097,3067.5,3067.2,0.01]
[1732123311738,0.4805062,3068.2,3067.2,0.01]
[1732123311939,0.78104648,3068.1,3067.4,0.01]
[1732123312258,0.78104648,3068.0,3067.4,0.01]
[1732123312442,0.78104648,3067.9,3067.4,0.01]
[1732123312643,0.78104648,3067.8,3067.4,0.01]
[1732123312977,0.30054028,3067.7,3067.4,0.01]
[1732123313182,0.30054028,3067.6,3067.4,0.01]
[1732123313475,0.30054028,3067.5,3067.4,0.01]
[1732123313681,0.30054028,3067.5,3067.4,0.824]
[1732123313840,0.4805062,3067.9,3067.6,0.01]
[1732123314035,0.30131467,3067.8,3067.6,0.01]
[1732123314235,0.30131467,3067.7,3067.6,0.01]
[1732123314735,0.30131467,3067.7,3067.4,0.824]
[1732123314942,0.48234567,3068.1,3067.6,0.01]
[1732123315187,0.78373465,3068.0,3067.6,0.01]
[1732123315492,0.78373465,3067.9,3067.6,0.01]
[1732123315631,0.78373465,3067.8,3067.6,0.01]
[1732123315839,0.30138898,3067.7,3067.6,0.01]
[1732123316692,0.48243099,3068.1,3067.8,0.01]
[1732123316845,0.78420116,3068.0,3067.9,0.7609]
[1732123317049,0.30177017,3068.0,3067.9,0.7609]
[1732123317540,1.302215,3069.0,3068.0,0.01]
[1732123317744,0.48259618,3068.9,3067.9,0.7609]
[1732123318089,0.6610773,3068.8,3067.9,0.7609]
[1732123318391,0.30158528,3068.7,3067.9,0.7609]
[1732123318538,0.6610773,3068.8,3067.9,0.7609]
[1732123318539,0.78418146,3068.6,3067.9,0.7609]
[1732123318741,0.78418146,3068.5,3067.9,0.7609]
[1732123318940,0.78418146,3068.4,3067.9,0.7609]
[1732123319141,0.78418146,3068.3,3067.9,0.7609]
[1732123319396,0.78418146,3068.2,3067.9,0.7609]
[1732123319697,0.78418146,3068.1,3067.9,0.7609]
[1732123319994,0.08766258,3068.8,3067.9,0.7609]
[1732123321340,0.08766258,3068.8,3067.5,0.7839]
[1732123321593,0.55,3068.5,3067.1,0.7739]
[1732123321773,0.55,3068.5,3067.2,0.01]
[1732123321774,8.95794156,3068.5,3067.2,0.01]
[1732123321952,8.95794156,3068.5,3067.4,0.01]
[1732123321953,0.92670416,3068.4,3067.4,0.01]
[1732123322153,0.92670416,3068.4,3067.5,0.7739]
[1732123323702,0.92670416,3068.4,3067.0,0.8065]
[1732123323703,0.3091,3068.3,3067.0,0.8065]
[1732123323993,0.3091,3068.3,3066.6,0.7565]
[1732123323994,9.50794156,3068.2,3066.6,0.7565]
[1732123324145,0.55,3068.0,3066.6,0.7565]
[1732123324345,0.55,3068.0,3065.1,0.03261274]
[1732123324346,0.55,3067.8,3066.2,0.01]
[1732123324697,8.95794156,3067.7,3066.4,0.01]
[1732123325203,0.55,3067.6,3066.2,0.01]
[1732123325358,0.55,3067.6,3066.1,0.7565]
[1732123325359,0.95079416,3067.5,3066.1,0.7565]
[1732123325549,9.50794156,3067.6,3066.2,0.01]
[1732123325747,0.04629236,3067.4,3066.2,0.01]
[1732123325946,0.04632926,3067.5,3066.2,0.01]
[1732123326198,0.3091,3067.2,3066.2,0.01]
[1732123326488,0.04618163,3067.1,3066.2,0.01]
[1732123326997,9.90873572,3067.5,3066.2,0.01]
[1732123327157,0.04614472,3067.0,3066.2,0.01]
[1732123327365,9.90873572,3067.5,3066.2,0.01]
[1732123327674,0.0461078,3066.9,3066.2,0.01]
[1732123327892,0.04607088,3066.8,3066.2,0.01]
[1732123328059,1.02178357,3067.4,3066.2,0.01]
[1732123328258,1.02178357,3067.4,3066.1,0.7565]
[1732123328259,0.04621416,3067.3,3066.1,0.7565]
[1732123328569,0.3091,3067.2,3065.8,0.01]
[1732123329113,0.04613967,3067.1,3065.8,0.01]
[1732123330593,0.04613967,3067.1,3066.1,0.01]
[1732123330799,0.04613967,3067.1,3066.4,0.01]
[1732123331152,4.04479703,3068.5,3067.0,0.8255]
[1732123331153,8.95794156,3068.2,3067.0,0.8255]
[1732123331352,8.95794156,3068.3,3067.0,0.8255]
[1732123331862,8.95794156,3068.6,3067.3,0.01]
[1732123332076,0.9061041,3069.4,3067.3,0.01]
[1732123332077,0.4034797,3068.5,3067.3,0.01]
[1732123332249,9.26704156,3068.8,3067.3,0.01]
[1732123333003,9.26704156,3068.8,3067.4,0.77]
[1732123333308,9.26704156,3068.8,3067.5,0.01]
[1732123333309,8.95794156,3068.8,3067.5,0.01]
[1732123333482,0.92670416,3068.7,3067.5,0.01]
[1732123333792,0.92670416,3068.7,3067.7,0.01]
[1732123333995,1.302215,3069.0,3067.8,0.805]
[1732123335076,1.302215,3069.0,3067.9,0.01]
[1732123335261,1.302215,3069.0,3068.0,0.8328]
[1732123336088,1.302215,3069.0,3068.2,0.01]
[1732123336370,1.302215,3069.0,3068.3,0.8328]
[1732123336716,0.3091,3068.9,3067.8,0.8328]
[1732123337235,11.95794156,3068.8,3067.0,0.8328]
[1732123337375,1.312215,3069.0,3067.0,0.8328]
[1732123337376,0.55,3068.3,3067.0,0.8328]
[1732123337907,0.55,3068.3,3065.6,0.03260856]
[1732123337908,0.55,3067.9,3066.6,0.7748]
[1732123338198,0.55,3067.9,3065.0,0.01]
[1732123338199,0.3091,3067.5,3066.0,0.7748]
[1732123338406,9.50794156,3067.4,3066.0,0.7748]
[1732123338554,0.55,3067.0,3065.5,0.797]
[1732123338756,8.95794156,3066.9,3065.5,0.797]
[1732123339105,8.95794156,3066.9,3065.7,0.01]
[1732123339106,0.89579416,3066.8,3065.7,0.01]
[1732123339312,0.89579416,3066.8,3065.8,0.7975]
[1732123339685,0.24096079,3066.7,3066.4,0.01]
[1732123340012,0.24096079,3066.6,3066.5,0.7737]
[1732123340172,8.95794156,3067.8,3066.6,0.01]
[1732123340367,1.16778271,3067.7,3066.5,0.7737]
[1732123340568,0.24107855,3067.6,3066.1,0.7737]
[1732123340895,8.95794156,3067.5,3066.1,0.7737]
[1732123341217,0.3091,3067.3,3066.1,0.7737]
[1732123341383,0.79104205,3067.2,3066.1,0.7737]
[1732123341711,0.24104205,3067.1,3066.1,0.7737]
[1732123341935,0.28544226,3067.0,3066.1,0.7737]
[1732123342228,0.24104205,3066.9,3066.1,0.7737]
[1732123342541,0.24104205,3066.9,3064.1,1.3549137]
[1732123342542,0.55,3066.6,3064.3,0.7996]
[1732123342824,3.01,3066.7,3063.6,2.04237055]
[1732123342825,3.55,3066.4,3064.8,0.7996]
[1732123342985,0.55,3066.2,3064.8,0.7996]
[1732123343180,0.24104205,3066.1,3064.8,0.7996]
[1732123343424,0.24104205,3066.0,3065.0,0.7996]
[1732123343727,4.72636046,3066.7,3064.2,0.01]
[1732123343728,0.28502631,3065.9,3065.3,0.7996]
[1732123344179,0.04398426,3065.9,3065.3,0.7996]
[1732123344632,8.95794156,3066.6,3065.3,0.7996]
[1732123344924,3.55930133,3066.9,3065.4,0.01]
[1732123344925,8.95794156,3066.8,3065.4,0.01]
[1732123345151,0.04425148,3066.7,3065.7,0.01]
[1732123345284,0.99597577,3066.7,3065.8,0.7783]
[1732123345490,0.99597577,3066.7,3065.3,0.01]
[1732123345491,0.55,3066.6,3065.3,0.01]
[1732123345737,0.55,3066.4,3065.3,0.01]
[1732123346031,0.55,3066.4,3065.2,0.7783]
[1732123346190,0.04411351,3066.3,3065.2,0.7783]
[1732123346386,9.00205507,3066.3,3065.2,0.7783]
[1732123346698,0.95520551,3066.2,3065.2,0.7783]
[1732123346898,0.04403964,3066.1,3065.2,0.7783]
[1732123349130,9.0019812,3066.1,3065.2,0.7783]
[1732123351083,8.95794156,3066.0,3065.2,0.7783]
[1732123351289,0.043954,3065.9,3065.2,0.7783]
[1732123351524,0.90018956,3065.8,3065.2,0.7783]
[1732123351828,0.04388011,3065.7,3065.2,0.7783]
[1732123352138,12.98892631,3066.6,3065.2,0.7783]
[1732123352286,0.04384923,3065.6,3065.2,0.7783]
[1732123352485,11.95794156,3066.6,3065.2,0.7783]
[1732123352685,0.04418167,3066.5,3065.2,0.7783]
[1732123353294,0.55,3066.4,3065.2,0.7783]
[1732123353535,0.04410781,3066.3,3065.2,0.7783]
[1732123353828,0.04410781,3066.3,3064.7,0.8222]
[1732123353829,0.3091,3066.1,3064.7,0.8222]
[1732123354001,0.55,3066.0,3064.7,0.8322]
[1732123354203,0.593997,3066.0,3064.7,0.8322]
[1732123355153,3.26168,3065.9,3064.7,0.8322]
[1732123355301,0.593997,3066.0,3064.7,0.8322]
[1732123355302,3.26212,3065.5,3064.7,0.8322]
[1732123355504,0.593997,3066.0,3064.7,0.8322]
[1732123355505,0.04373566,3065.4,3064.7,0.8322]
[1732123355764,3.26183,3065.8,3064.7,0.8322]
[1732123355942,0.04369871,3065.3,3064.7,0.8322]
[1732123356253,9.37000156,3065.9,3064.7,0.8322]
[1732123356254,12.63170156,3065.9,3064.7,0.8322]
[1732123356552,8.95794156,3065.9,3065.3,0.01]
[1732123356753,0.04388346,3065.8,3065.3,0.01]
[1732123356913,3.26197,3065.7,3065.0,0.7519]
[1732123357112,0.37439492,3065.6,3065.0,0.7519]
[1732123357527,0.04380957,3065.6,3065.0,0.7519]
[1732123357733,8.95794156,3065.9,3065.0,0.7519]
[1732123357734,0.55,3065.8,3065.0,0.7519]
[1732123357933,3.26249,3065.2,3064.6,0.7769]
[1732123358148,0.04362479,3065.1,3064.6,0.7769]
[1732123359051,0.04362479,3065.1,3064.7,0.01]
[1732123359259,0.04362479,3065.1,3064.6,0.7769]
[1732123359260,0.04362479,3065.1,3064.6,0.01]
[1732123359554,0.04358783,3065.0,3064.7,0.7555]
[1732123359942,3.26235,3065.3,3064.7,0.7555]
[1732123360140,3.26213,3065.5,3064.7,0.7555]
[1732123360141,0.04355087,3064.9,3064.7,0.7555]
[1732123360459,0.42438342,3065.4,3064.7,0.7555]
[1732123360755,3.68660342,3065.4,3064.7,0.7555]
[1732123360938,3.30608871,3065.3,3064.7,0.7555]
[1732123361144,0.37304721,3065.2,3064.7,0.7555]
[1732123361343,3.63547721,3065.2,3064.7,0.7555]
[1732123361512,3.30617479,3065.1,3064.7,0.7555]
[1732123362062,3.26285,3064.8,3064.3,0.8008]
[1732123362208,3.26302,3064.7,3064.3,0.8008]
[1732123362414,3.30647573,3064.7,3063.8,0.8008]
[1732123362615,3.26323,3064.5,3063.8,0.8008]
[1732123362828,0.33064757,3064.6,3063.8,0.8008]
[1732123362829,3.26362,3064.1,3063.8,0.8008]
[1732123363357,0.04319688,3064.0,3063.8,0.8008]
[1732123363735,3.26338,3064.3,3063.8,0.8008]
[1732123363913,0.04327085,3064.2,3063.8,0.8008]
[1732123364107,0.33066509,3064.1,3063.8,0.8008]
[1732123364364,0.33066509,3064.1,3062.8,0.00184651]
[1732123364365,0.04319688,3064.0,3063.4,0.01]
[1732123364728,0.04319688,3064.0,3063.2,0.789]
[1732123365031,0.55,3064.3,3063.2,0.789]
[1732123365227,0.0431599,3063.9,3063.6,0.01]
[1732123365429,8.95794156,3065.2,3063.9,0.01]
[1732123365653,3.2627,3065.0,3063.9,0.01]
[1732123365813,9.00150749,3065.1,3063.9,0.01]
[1732123366028,0.043492,3064.9,3064.0,0.8109]
[1732123366230,0.97377972,3065.0,3064.0,0.8109]
[1732123366462,0.04345504,3064.8,3064.1,0.01]
[1732123366633,1.03666413,3064.9,3064.1,0.01]
[1732123366813,0.04341807,3064.7,3064.5,0.01]
[1732123367018,0.04346614,3064.8,3064.6,0.8109]
[1732123367218,3.26232,3065.3,3064.6,0.8109]
[1732123367649,0.89579416,3065.4,3064.6,0.8109]
[1732123367962,3.26249,3065.2,3064.6,0.8109]
[1732123368174,3.26249,3065.2,3063.1,0.01]
[1732123368175,3.26276,3064.9,3064.3,0.8206]
[1732123368466,3.26283,3064.9,3064.3,0.8206]
[1732123368668,3.26297,3064.7,3064.3,0.8206]
[1732123368970,3.26313,3064.6,3063.8,0.8206]
[1732123369115,3.2636,3064.1,3063.8,0.8206]
[1732123369316,3.2636,3064.1,3063.2,0.8206]
[1732123369566,3.26382,3063.9,3063.2,0.8206]
[1732123370118,9.28430156,3064.0,3063.2,0.8206]
[1732123370321,9.50794156,3063.9,3063.2,0.8206]
[1732123370566,3.26408,3063.7,3063.2,0.8206]
[1732123370867,3.26431,3063.5,3062.8,0.78984651]
[1732123371165,9.55083709,3063.4,3062.8,0.78984651]
[1732123371519,12.81523709,3063.4,3062.8,0.78984651]
[1732123371830,1.28152371,3063.3,3062.8,0.78984651]
[1732123372034,9.00083709,3063.4,3062.8,0.78984651]
[1732123372272,0.04281042,3063.2,3062.8,0.78984651]
[1732123372555,0.04277274,3063.1,3062.8,0.78984651]
[1732123372927,0.04277274,3063.1,3062.8,0.00184651]
[1732123373659,0.04277274,3063.1,3062.2,0.78684651]
[1732123373861,0.90007143,3063.0,3062.2,0.78684651]
[1732123374077,8.95794156,3063.1,3062.2,0.78684651]
[1732123374283,0.04269198,3062.9,3062.2,0.78684651]
[1732123374472,0.04272899,3063.0,3062.2,0.73684651]
[1732123374697,0.04265497,3062.8,3062.2,0.73684651]
[1732123374891,0.04269198,3062.9,3062.2,0.73684651]
[1732123375061,0.04261795,3062.7,3062.2,0.73684651]
[1732123375257,8.95794156,3063.1,3062.2,0.68684651]
[1732123375258,0.04265497,3062.8,3062.2,0.68684651]
[1732123375563,8.95794156,3063.1,3062.2,0.68684651]
[1732123375564,0.04261492,3062.7,3062.2,0.68684651]
[1732123376003,8.95794156,3063.1,3062.2,0.63684651]
[1732123376315,0.0425375,3062.6,3062.2,0.63684651]
[1732123376458,0.89579416,3063.1,3062.2,0.63684651]
[1732123376655,0.04250081,3062.5,3062.2,0.63684651]
[1732123376859,0.89579416,3063.1,3062.2,0.63684651]
[1732123377061,0.04247086,3062.4,3062.2,0.63684651]
[1732123377309,12.22244156,3063.3,3062.2,0.63684651]
[1732123377520,8.95794156,3063.2,3062.2,0.63684651]
[1732123377671,9.00070855,3063.2,3062.2,0.63684651]
[1732123378608,0.04276699,3063.2,3062.2,0.63684651]
[1732123379112,8.95794156,3064.0,3062.2,0.63684651]
[1732123379113,3.264,3063.8,3062.2,0.63684651]
[1732123379324,12.22172156,3064.0,3062.2,0.63684651]
[1732123379606,0.93881306,3063.9,3062.2,0.64684651]
[1732123379760,0.0430189,3063.9,3062.2,0.64684651]
[1732123380419,0.0430189,3063.9,3062.2,0.63684651]
[1732123381729,0.636847,3063.8,3062.2,0.63684651]
[1732123381868,0.636847,3063.8,3062.3,0.83325078]
[1732123382178,0.04294492,3063.7,3062.8,0.7877]
[1732123382378,0.04294492,3063.7,3063.2,0.7777]
[1732123382619,0.636847,3064.2,3063.4,0.7777]
[1732123383026,0.04174462,3064.1,3063.4,0.7777]
[1732123383716,0.636847,3064.2,3063.4,0.7777]
[1732123384070,0.04174462,3064.1,3063.5,0.03263906]
[1732123384270,0.04174462,3064.1,3063.6,0.8191]
[1732123384493,0.7777,3065.3,3063.6,0.8191]
[1732123384693,0.0421513,3065.2,3063.7,0.8191]
[1732123385608,3.26254,3065.1,3063.7,0.8191]
[1732123386053,0.04212518,3065.0,3063.7,0.8191]
[1732123386394,3.30480518,3065.0,3063.7,0.8191]
[1732123386752,3.26307,3064.6,3063.7,0.8191]
[1732123386907,0.55,3064.7,3063.4,0.8203]
[1732123387093,3.26345,3064.3,3063.4,0.8203]
[1732123387446,0.36817137,3064.2,3063.4,0.8203]
[1732123387932,0.04182637,3064.2,3063.4,0.8203]
[1732123388310,3.26318,3064.5,3063.4,0.8203]
[1732123388635,0.0417766,3064.1,3063.4,0.8203]
[1732123388839,0.04057962,3064.4,3063.4,0.8203]
[1732123389037,0.04043169,3064.0,3063.4,0.8203]
[1732123389341,0.89579416,3064.5,3063.4,0.8203]
[1732123389910,0.04057962,3064.4,3063.4,0.8203]
[1732123390456,0.41996138,3064.3,3063.4,0.8203]
[1732123390736,0.04050566,3064.2,3063.4,0.8203]
[1732123391140,0.89579416,3064.5,3063.4,0.8203]
[1732123391434,0.04057962,3064.4,3063.4,0.8203]
[1732123392080,8.95794156,3065.1,3063.4,0.8203]
[1732123392238,0.0392549,3064.3,3063.4,0.8203]
[1732123392434,3.26274,3065.0,3063.4,0.8203]
[1732123392635,0.03921792,3064.2,3063.4,0.8203]
[1732123392877,3.26274,3065.0,3063.4,0.8203]